fUSD/lending_fUSD_20250602
["ID","MTS","AMOUNT","RATE_DAILY","PERIOD"]
[363720842,1748844109820,-2860.54,0.00039565,120]
[363720843,1748844109844,-2860.54,0.00039565,120]
[363720844,1748844109869,-500.0,0.00039565,120]
[363720845,1748844109893,-2860.54,0.00039565,120]
[363720846,1748844109918,-2860.54,0.00039565,120]
[363720847,1748844109944,-2860.54,0.00039565,120]
[363720848,1748844109968,-500.0,0.00039565,120]
[363720849,1748844109991,-2860.54,0.00039565,120]
[363720850,1748844110017,-2860.54,0.00039565,120]
[363720851,1748844110042,-2860.54,0.00039565,120]
[363720852,1748844110065,-2860.54,0.00039565,120]
[363720853,1748844110090,-2860.54,0.00039565,120]
[363720854,1748844110115,-2860.54,0.00039565,120]
[363720855,1748844110138,-2860.54,0.00039565,120]
[363720856,1748844110162,-2860.54,0.00039565,120]
[363720857,1748844110187,-2860.54,0.00039565,120]
[363720858,1748844110214,-2860.54,0.00039565,120]
[363720859,1748844110239,-2860.54,0.00039565,120]
[363720860,1748844110262,-2860.54,0.00039565,120]
[363720861,1748844110286,-2860.59608578,0.00039565,120]
[363720862,1748844110310,-322.0,0.00039565,120]
[363720863,1748844110333,-333.51808461,0.00039565,60]
[363720864,1748844110355,-1000.0,0.00039565,60]
[363720865,1748844110378,-1000.0,0.00039565,60]
[363720866,1748844110402,-1000.0,0.00039565,60]
[363720867,1748844110430,-1000.0,0.00039565,60]
[363720868,1748844110453,-1000.0,0.00039565,60]
[363720869,1748844110477,-500.0,0.00039565,120]
[363720870,1748844110504,-500.0,0.00039565,120]
[363720871,1748844110529,-262.86390542,0.00039565,120]
[363720872,1748844110553,-1000.0,0.00039565,60]
[363720873,1748844110579,-1000.0,0.00039565,60]
[363720874,1748844110605,-565.08988919,0.00039565,120]
[363720875,1748844110629,-1346.98341315,0.00039565,90]
[363720876,1748844110654,-1808.56628489,0.00039565,91]
[363720877,1748844110679,-2866.89244183,0.00039565,120]
[363720878,1748844110704,-942.35358594,0.00039565,120]
[363720879,1748844110730,-1564.3487306,0.00039565,120]
[363720880,1748844110755,-171.51337164,0.00039565,120]
[363720881,1748844110780,-2414.37118366,0.00039565,120]
[363720882,1748844110804,-2360.0,0.00039565,120]
[363720883,1748844110829,-430.57223528,0.00039565,120]
[363720884,1748844110855,-546.13698427,0.00039565,120]
[363720885,1748844110879,-869.95318373,0.00039565,120]
[363720886,1748844110904,-173.83275801,0.00039565,90]
[363720887,1748844110928,-227.08371724,0.00039565,60]
[363720888,1748844110952,-2184.70559564,0.00039565,90]
[363720889,1748844110977,-225.68519135,0.00039565,120]
[363720890,1748844111001,-1701.82312256,0.00039565,120]
[363720891,1748844111025,-1511.76428711,0.00039565,120]
[363720892,1748844111049,-229.33339633,0.00039565,120]
[363720893,1748844111073,-337.6212261,0.00039565,60]
[363720894,1748844111097,-193.79426564,0.00039565,120]
[363720895,1748844111122,-2818.90065958,0.00039565,120]
[363720896,1748844111146,-918.28894724,0.00039565,120]
[363720897,1748844111172,-182.33969588,0.00039565,120]
[363720898,1748844111195,-911.58912731,0.00039565,120]
[363720899,1748844111410,-1401.59335597,0.00039565,120]
[363720900,1748844111435,-202.17780149,0.00039565,120]
[363720901,1748844111459,-777.29911778,0.00039565,120]
[363720902,1748844111483,-308.29149942,0.00039565,60]
[363720903,1748844111507,-472.84087241,0.00039565,120]
[363720904,1748844111530,-166.8446339,0.00039565,120]
[363720905,1748844111554,-227.92458893,0.00039565,120]
[363720906,1748844111578,-2105.18809138,0.00039565,120]
[363720907,1748844111601,-3235.04932492,0.00039565,120]
[363720908,1748844111626,-237.08062083,0.00039565,120]
[363720909,1748844111652,-701.11354251,0.00039565,120]
[363720910,1748844111677,-742.71890501,0.00039565,120]
[363720911,1748844111702,-2210.05984325,0.00039565,120]
[363720912,1748844111726,-253.0861881,0.00039565,120]
[363720913,1748844111750,-603.96315652,0.00039565,120]
[363720914,1748844111774,-1284.85127216,0.00039565,120]
[363720915,1748844111798,-1290.06817911,0.00039565,120]
[363720916,1748844111822,-6205.80173315,0.00039565,120]
[363720917,1748844111847,-388.22781121,0.00039565,120]
[363720918,1748844111871,-190.99465532,0.00039565,120]
[363720919,1748844111895,-568.07287946,0.00039565,120]
[363720920,1748844111920,-208.52499185,0.00039565,60]
[363720921,1748844111945,-1266.86523669,0.00039565,120]
[363720922,1748844111968,-1414.92700504,0.00039565,120]
[363720923,1748844111992,-4654.11487504,0.00039565,120]
[363720924,1748844112017,-996.01503487,0.00039565,120]
[363720925,1748844112041,-1226.98487279,0.00039565,120]
[363720926,1748844112066,-7491.44529039,0.00039565,60]
[363720927,1748844112090,-2719.43288567,0.00039565,120]
[363720928,1748844112115,-416.44327912,0.00039565,120]
[363720929,1748844112140,-3035.19845022,0.00039565,120]
[363720930,1748844112165,-592.17564263,0.00039565,120]
[363720931,1748844112188,-558.53337362,0.00039565,120]
[363720932,1748844112212,-359.82948276,0.00039565,120]
[363720933,1748844112236,-2617.5144576,0.00039565,120]
[363720934,1748844112259,-215.08617641,0.00039565,120]
[363720935,1748844112283,-166.01491053,0.00039565,120]
[363720936,1748844112306,-2496.11,0.00039565,60]
[363720937,1748844112330,-7300.712798,0.00039565,120]
[363720938,1748844112355,-3761.61876924,0.00039565,120]
[363720939,1748844112379,-233.0,0.00039565,120]
[363720940,1748844112403,-159.0,0.00039565,120]
[363720941,1748844112430,-3217.61856017,0.00039565,120]
[363720942,1748844112456,-167.0,0.00039565,120]
[363720943,1748844112482,-158.32145347,0.00039565,120]
[363720944,1748844112506,-180.59348732,0.00039565,60]
[363720945,1748844112530,-3000.0,0.00039565,120]
[363720946,1748844112555,-772.0,0.00039565,60]
[363720947,1748844112579,-188.73,0.00039565,120]
[363720948,1748844112604,-894.08798615,0.00039565,120]
[363720949,1748844112628,-1386.5,0.00039565,120]
[363720950,1748844112652,-189.73396177,0.00039565,120]
[363720951,1748844112677,-458.5173006,0.00039565,120]
[363720952,1748844112700,-543.50029874,0.00039565,120]
[363720953,1748844112724,-1194.85664526,0.00039565,120]
[363720954,1748844112749,-203.90417987,0.00039565,120]
[363720955,1748844112773,-1313.98518264,0.00039565,120]
[363720956,1748844112797,-500.30626172,0.00039565,120]
[363720957,1748844112820,-578.8592,0.00039565,120]
[363720958,1748844112845,-1547.0,0.00039565,120]
[363720959,1748844112868,-7001.62144835,0.00039565,120]
[363720960,1748844112892,-4092.64651271,0.00039565,120]
[363720961,1748844112916,-1336.98890221,0.00039565,120]
[363720962,1748844112941,-669.86177878,0.00039565,120]
[363720963,1748844112965,-3275.79049292,0.00039565,120]
[363720964,1748844112988,-264.5,0.00039565,60]
[363720965,1748844113011,-200.0,0.00039565,60]
[363720966,1748844113035,-218.9,0.00039565,60]
[363720967,1748844113058,-200.0,0.00039565,60]
[363720968,1748844113081,-218.9,0.00039565,60]
[363720969,1748844121311,-229.1996248,0.00024,120]
[363720970,1748844121337,-150.0,0.00024004,120]
[363720971,1748844121364,-150.0,0.00024111,120]
[363720972,1748844121398,-957.0,0.00025,120]
[363720973,1748844121428,-1188.63091053,0.00025,120]
[363720974,1748844121454,-150.0,0.00025104,120]
[363720975,1748844121481,-180.14,0.00025246,120]
[363720976,1748844121508,-511.639329,0.00025499,120]
[363720977,1748844121539,-150.0,0.00026921,120]
[363720978,1748844121569,-150.0,0.00026934,120]
[363720979,1748844121594,-3470.73602737,0.00027,120]
[363720980,1748844121620,-900.0,0.00027,120]
[363720981,1748844121651,-3048.39669062,0.0002739,120]
[363720982,1748844121675,-235.23216841,0.00027397,120]
[363720983,1748844121705,-200.0,0.00027397,60]
[363720984,1748844121731,-179.39,0.00027397,80]
[363720985,1748844121759,-150.0,0.00027508,120]
[363720986,1748844121785,-180.14,0.00027542,120]
[363720987,1748844121811,-150.0,0.00027566,120]
[363720988,1748844121838,-900.0,0.00028,120]
[363720989,1748844121865,-150.0,0.00028137,120]
[363720990,1748844121893,-150.0,0.00028598,120]
[363720991,1748844121924,-150.0,0.00028962,120]
[363720992,1748844121950,-159.0,0.00029,120]
[363720993,1748844121974,-169.0,0.00029,120]
[363720994,1748844122001,-150.0,0.00029135,120]
[363720995,1748844122025,-150.0,0.00029159,120]
[363720996,1748844122050,-150.0,0.00029161,120]
[363720997,1748844122075,-150.0,0.00029316,120]
[363720998,1748844122099,-150.0,0.00029492,120]
[363720999,1748844122126,-633.46175899,0.0003,120]
[363721000,1748844122149,-294.05433766,0.0003,120]
[363721001,1748844122175,-955.81060066,0.0003,120]
[363721002,1748844122200,-430.5553628,0.0003,120]
[363721003,1748844122224,-603.07456128,0.0003,120]
[363721004,1748844122247,-302.80129259,0.0003,60]
[363721005,1748844122272,-2012.28,0.0003,120]
[363721006,1748844122298,-1000.0,0.0003,120]
[363721007,1748844122322,-491.0,0.0003,120]
[363721008,1748844122346,-10602.07090947,0.0003,120]
[363721009,1748844122372,-1000.0,0.0003013,120]
[363721010,1748844122399,-200.0,0.00030137,60]
[363721011,1748844122434,-150.0,0.0003031,120]
[363721012,1748844122462,-150.0,0.00031074,120]
[363721013,1748844122490,-1500.0,0.00032,120]
[363721014,1748844122515,-1000.0,0.00032,120]
[363721015,1748844122542,-150.0,0.00032027,120]
[363721016,1748844122568,-150.0,0.0003222,120]
[363721017,1748844122593,-5525.49,0.0003287,120]
[363721018,1748844122618,-200.0,0.00032877,60]
[363721019,1748844122646,-435.36219109,0.00033,120]
[363721020,1748844122671,-2544.59027071,0.00033,120]
[363721021,1748844122696,-150.0,0.00033023,120]
[363721022,1748844122721,-150.0,0.00033051,120]
[363721023,1748844122747,-150.0,0.00033307,120]
[363721024,1748844122772,-150.0,0.00033538,120]
[363721025,1748844122797,-150.0,0.00033747,120]
[363721026,1748844122820,-518.5863062,0.000339,120]
[363721027,1748844122845,-150.0,0.00033977,120]
[363721028,1748844122873,-150.0,0.00033985,120]
[363721029,1748844122898,-2729.00812149,0.00034,120]
[363721030,1748844122924,-1500.0,0.00034,120]
[363721031,1748844122950,-150.0,0.00034057,120]
[363721032,1748844122975,-150.0,0.00034078,120]
[363721033,1748844123000,-179.39,0.00034247,120]
[363721034,1748844123030,-859.35103723,0.00034247,90]
[363721035,1748844123057,-150.0,0.00034716,120]
[363721036,1748844123084,-2750.83514345,0.000349,120]
[363721037,1748844123112,-1076.70213959,0.00035,120]
[363721038,1748844123139,-2445.44437693,0.00035,90]
[363721039,1748844123166,-6200.0,0.00035,60]
[363721040,1748844123193,-159.0,0.000351,120]
[363721041,1748844123219,-169.0,0.000351,120]
[363721042,1748844123439,-150.0,0.00035515,120]
[363721043,1748844123467,-150.0,0.00035534,120]
[363721044,1748844123492,-200.0,0.00035616,60]
[363721045,1748844123519,-1044.59959703,0.00036,120]
[363721046,1748844123546,-1500.0,0.00036,120]
[363721047,1748844123573,-1000.0,0.000361,120]
[363721048,1748844123600,-150.0,0.00036463,120]
[363721049,1748844123627,-150.0,0.00036491,120]
[363721050,1748844123655,-150.0,0.00036511,120]
[363721051,1748844123681,-2897.22051428,0.00036888,60]
[363721052,1748844123707,-1672.49369386,0.000369,120]
[363721053,1748844123733,-150.0,0.00036904,120]
[363721054,1748844123761,-150.0,0.00036973,120]
[363721055,1748844123787,-150.0,0.0003725,120]
[363721056,1748844123814,-150.0,0.00037527,120]
[363721057,1748844123839,-200.0,0.00037565,120]
[363721058,1748844123866,-171.57020601,0.00037999,120]
[363721059,1748844123893,-1136.2060938,0.00038,120]
[363721060,1748844123919,-1500.0,0.00038,120]
[363721061,1748844123946,-150.0,0.00038353,120]
[363721062,1748844123972,-213.63312916,0.00038356,60]
[363721063,1748844123996,-2000.0,0.00038356,120]
[363721064,1748844124022,-2000.0,0.00038356,120]
[363721065,1748844124048,-2000.0,0.00038356,120]
[363721066,1748844124073,-2000.0,0.00038356,120]
[363721067,1748844124102,-2000.0,0.00038356,120]
[363721068,1748844124129,-2000.0,0.00038356,120]
[363721069,1748844124155,-2000.0,0.00038356,120]
[363721070,1748844124182,-2000.0,0.00038356,120]
[363721071,1748844124209,-2000.0,0.00038356,120]
[363721072,1748844124235,-2000.0,0.00038356,120]
[363721073,1748844124260,-2000.0,0.00038356,120]
[363721074,1748844124285,-2000.0,0.00038356,120]
[363721075,1748844124310,-2000.0,0.00038356,120]
[363721076,1748844124336,-2000.0,0.00038356,120]
[363721077,1748844124361,-2000.0,0.00038356,120]
[363721078,1748844124390,-1719.39977,0.00038356,120]
[363721079,1748844124419,-150.0,0.0003851,120]
[363721080,1748844124446,-150.0,0.00038566,120]
[363721081,1748844124476,-150.0,0.00038668,120]
[363721082,1748844124506,-150.0,0.00038677,120]
[363721083,1748844124532,-85425.31362203,0.0003888,120]
[363721084,1748844124559,-150.0,0.0003889,120]
[363721085,1748844124585,-394.35545177,0.000389,120]
[363721086,1748844124613,-150.0,0.00038997,120]
[363721087,1748844124642,-262.57632814,0.00039,120]
[363721088,1748844124668,-193.50381111,0.00039,120]
[363721089,1748844124693,-3674.0,0.00039,120]
[363721090,1748844124720,-345.0,0.00039,90]
[363721091,1748844124748,-5115.55842776,0.00039198,120]
[363721092,1748844124774,-345.0,0.00039205,90]
[363721093,1748844124800,-150.0,0.0003924,120]
[363721094,1748844124825,-345.0,0.00039479,90]
[363721095,1748844124851,-5000.0,0.000395,120]
[363721096,1748844124878,-609.43221562,0.000395,120]
[363721097,1748844124925,-150.0,0.00039726,120]
[363721098,1748844124950,-345.0,0.00039753,90]
[363721099,1748844124975,-218.4598269,0.000399,120]
[363721100,1748844125000,-434.0,0.00039986,90]
[363721101,1748844125029,-3410.0,0.0004,120]
[363721102,1748844125052,-4344.0,0.0004,120]
[363721103,1748844125077,-3295.81981442,0.0004,120]
[363721104,1748844125101,-2531.5888275,0.0004,90]
[363721105,1748844125126,-712.92501302,0.0004,120]
[363721106,1748844125150,-1174.07735281,0.0004,120]
[363721107,1748844125174,-912.32497815,0.0004,120]
[363721108,1748844125199,-628.56356818,0.0004,120]
[363721109,1748844125223,-873.87511174,0.0004,120]
[363721110,1748844125248,-185.18878927,0.0004,120]
[363721111,1748844125273,-1500.0,0.0004,120]
[363721112,1748844125297,-1000.0,0.0004,120]
[363721113,1748844125320,-1646.5562426,0.0004,120]
[363721114,1748844125345,-345.0,0.00040027,90]
[363721115,1748844125373,-150.0,0.00040045,120]
[363721116,1748844125399,-150.0,0.00040084,120]
[363721117,1748844125428,-3288.99,0.0004018,60]
[363721118,1748844125454,-242.48886027,0.000405,120]
[363721119,1748844125478,-11248.68,0.000405,120]
[363721120,1748844125505,-1333.0,0.00040658,120]
[363721121,1748844125531,-4173.0,0.000407,117]
[363721122,1748844125556,-150.0,0.00040803,120]
[363721123,1748844125582,-150.0,0.00040861,120]
[363721124,1748844125607,-345.0,0.00040877,90]
[363721125,1748844125634,-525.24542126,0.00041,120]
[363721126,1748844125658,-265.46,0.00041,120]
[363721127,1748844125682,-3000.0,0.00041,120]
[363721128,1748844125709,-3674.0,0.00041,120]
[363721129,1748844125732,-3000.0,0.00041,120]
[363721130,1748844125756,-238.28873315,0.00041,120]
[363721131,1748844125787,-150.0,0.00041039,120]
[363721132,1748844125816,-5527.97,0.00041095,120]
[363721133,1748844125843,-2763.98,0.00041095,120]
[363721134,1748844125872,-500.0,0.00041095,120]
[363721135,1748844125897,-500.0,0.00041095,120]
[363721136,1748844125923,-500.0,0.00041095,120]
[363721137,1748844125948,-500.0,0.00041095,120]
[363721138,1748844125973,-500.0,0.00041095,120]
[363721139,1748844125998,-500.0,0.00041095,120]
[363721140,1748844126023,-500.0,0.00041095,120]
[363721141,1748844126048,-500.0,0.00041095,120]
[363721142,1748844126073,-500.0,0.00041095,120]
[363721143,1748844126098,-500.0,0.00041095,120]
[363721144,1748844126123,-500.0,0.00041095,120]
[363721145,1748844126302,-500.0,0.00041095,120]
[363721146,1748844126329,-500.0,0.00041095,120]
[363721147,1748844126354,-500.0,0.00041095,120]
[363721148,1748844126379,-500.0,0.00041095,120]
[363721149,1748844126408,-500.0,0.00041095,120]
[363721150,1748844126437,-500.0,0.00041095,120]
[363721151,1748844126462,-500.0,0.00041095,120]
[363721152,1748844126487,-500.0,0.00041095,120]
[363721153,1748844126512,-500.0,0.00041095,120]
[363721154,1748844126535,-500.0,0.00041095,120]
[363721155,1748844126558,-500.0,0.00041095,120]
[363721156,1748844126581,-549.83899721,0.00041095,120]
[363721157,1748844126606,-469.01,0.00041095,120]
[363721158,1748844126630,-469.01,0.00041095,120]
[363721159,1748844126654,-469.01,0.00041095,120]
[363721160,1748844126678,-469.01,0.00041095,120]
[363721161,1748844126702,-469.01,0.00041095,120]
[363721162,1748844126728,-469.01,0.00041095,120]
[363721163,1748844126752,-469.01,0.00041095,120]
[363721164,1748844126776,-469.01,0.00041095,120]
[363721165,1748844126801,-469.01,0.00041095,120]
[363721166,1748844126825,-469.01,0.00041095,120]
[363721167,1748844126850,-469.01,0.00041095,120]
[363721168,1748844126875,-469.01,0.00041095,120]
[363721169,1748844126900,-469.01,0.00041095,120]
[363721170,1748844126925,-469.01,0.00041095,120]
[363721171,1748844126950,-469.01,0.00041095,120]
[363721172,1748844126974,-469.01,0.00041095,120]
[363721173,1748844126999,-469.01,0.00041095,120]
[363721174,1748844127024,-469.01,0.00041095,120]
[363721175,1748844127049,-469.01,0.00041095,120]
[363721176,1748844127074,-469.01,0.00041095,120]
[363721177,1748844127098,-469.01,0.00041095,120]
[363721178,1748844127122,-469.01,0.00041095,120]
[363721179,1748844127146,-469.01,0.00041095,120]
[363721180,1748844127171,-469.21031086,0.00041095,120]
[363721181,1748844127197,-700.0,0.00041095,120]
[363721182,1748844127222,-700.0,0.00041095,120]
[363721183,1748844127246,-700.0,0.00041095,120]
[363721184,1748844127271,-700.0,0.00041095,120]
[363721185,1748844127296,-486.96156609,0.00041095,120]
[363721186,1748844127321,-5000.0,0.00041096,120]
[363721187,1748844127346,-3123.77,0.00041096,120]
[363721188,1748844127371,-179.39,0.00041096,120]
[363721189,1748844127399,-734.6187511,0.000411,120]
[363721190,1748844127429,-734.6187511,0.000411,120]
[363721191,1748844127454,-734.6187511,0.000411,120]
[363721192,1748844127479,-734.6187511,0.000411,120]
[363721193,1748844127503,-734.6187511,0.000411,120]
[363721194,1748844127528,-734.6187511,0.000411,120]
[363721195,1748844127553,-734.6187511,0.000411,120]
[363721196,1748844127578,-734.6187511,0.000411,120]
[363721197,1748844127603,-734.6187511,0.000411,120]
[363721198,1748844127630,-734.6187511,0.000411,120]
[363721199,1748844127657,-734.6187511,0.000411,120]
[363721200,1748844127682,-734.6187511,0.000411,120]
[363721201,1748844127708,-734.6187511,0.000411,120]
[363721202,1748844127733,-734.6187511,0.000411,120]
[363721203,1748844127758,-734.6187511,0.000411,120]
[363721204,1748844127782,-734.6187511,0.000411,120]
[363721205,1748844127807,-734.6187511,0.000411,120]
[363721206,1748844127832,-734.6187511,0.000411,120]
[363721207,1748844127857,-734.6187511,0.000411,120]
[363721208,1748844127883,-734.61,0.000411,120]
[363721209,1748844127909,-1714.11041924,0.000411,120]
[363721210,1748844127933,-1714.11041924,0.000411,120]
[363721211,1748844127958,-1714.11041924,0.000411,120]
[363721212,1748844127983,-1714.11041924,0.000411,120]
[363721213,1748844128009,-1714.11041924,0.000411,120]
[363721214,1748844128033,-1714.11041924,0.000411,120]
[363721215,1748844128059,-1714.11041924,0.000411,120]
[363721216,1748844128084,-1714.11041924,0.000411,120]
[363721217,1748844128110,-1714.11041924,0.000411,120]
[363721218,1748844128137,-1714.11041924,0.000411,120]
[363721219,1748844128163,-1714.11041924,0.000411,120]
[363721220,1748844128189,-1714.11041924,0.000411,120]
[363721221,1748844128215,-1714.11041924,0.000411,120]
[363721222,1748844128242,-1714.11041924,0.000411,120]
[363721223,1748844128268,-1714.11041924,0.000411,120]
[363721224,1748844128295,-1714.11041924,0.000411,120]
[363721225,1748844128322,-1714.11041924,0.000411,120]
[363721226,1748844128348,-1714.11041924,0.000411,120]
[363721227,1748844128374,-1714.11041924,0.000411,120]
[363721228,1748844128402,-1714.11,0.000411,120]
[363721229,1748844128431,-876.86153796,0.000411,120]
[363721230,1748844128456,-876.86153796,0.000411,120]
[363721231,1748844128484,-876.86153796,0.000411,120]
[363721232,1748844128511,-876.86153796,0.000411,120]
[363721233,1748844128540,-876.86153796,0.000411,120]
[363721234,1748844128565,-876.86153796,0.000411,120]
[363721235,1748844128592,-876.86153796,0.000411,120]
[363721236,1748844128619,-876.86153796,0.000411,120]
[363721237,1748844128644,-876.86153796,0.000411,120]
[363721238,1748844128671,-876.86153796,0.000411,120]
[363721239,1748844128696,-876.86153796,0.000411,120]
[363721240,1748844128721,-876.86153796,0.000411,120]
[363721241,1748844128746,-876.86153796,0.000411,120]
[363721242,1748844128771,-876.86153796,0.000411,120]
[363721243,1748844128794,-876.86153796,0.000411,120]
[363721244,1748844128820,-876.86153796,0.000411,120]
[363721245,1748844128845,-876.86153796,0.000411,120]
[363721246,1748844128869,-876.86153796,0.000411,120]
[363721247,1748844128895,-876.86153796,0.000411,120]
[363721248,1748844128922,-876.86,0.000411,120]
[363721249,1748844129110,-2046.01025524,0.000411,120]
[363721250,1748844129137,-2046.01025524,0.000411,120]
[363721251,1748844129164,-2046.01025524,0.000411,120]
[363721252,1748844129191,-2046.01025524,0.000411,120]
[363721253,1748844129217,-2046.01025524,0.000411,120]
[363721254,1748844129243,-2046.01025524,0.000411,120]
[363721255,1748844129268,-2046.01025524,0.000411,120]
[363721256,1748844129295,-2046.01025524,0.000411,120]
[363721257,1748844129321,-2046.01025524,0.000411,120]
[363721258,1748844129347,-2046.01025524,0.000411,120]
[363721259,1748844129375,-2046.01025524,0.000411,120]
[363721260,1748844129401,-2046.01025524,0.000411,120]
[363721261,1748844129432,-2046.01025524,0.000411,120]
[363721262,1748844129460,-2046.01025524,0.000411,120]
[363721263,1748844129486,-2046.01025524,0.000411,120]
[363721264,1748844129513,-2046.01025524,0.000411,120]
[363721265,1748844129540,-2046.01025524,0.000411,120]
[363721266,1748844129567,-2046.01025524,0.000411,120]
[363721267,1748844129594,-2046.01025524,0.000411,120]
[363721268,1748844129620,-2046.01,0.000411,120]
[363721269,1748844129647,-489.94392549,0.000411,120]
[363721270,1748844129673,-489.94392549,0.000411,120]
[363721271,1748844129699,-489.94392549,0.000411,120]
[363721272,1748844129726,-489.94392549,0.000411,120]
[363721273,1748844129754,-489.94392549,0.000411,120]
[363721274,1748844129780,-489.94392549,0.000411,120]
[363721275,1748844129807,-489.94392549,0.000411,120]
[363721276,1748844129833,-489.94392549,0.000411,120]
[363721277,1748844129858,-489.94392549,0.000411,120]
[363721278,1748844129886,-489.94392549,0.000411,120]
[363721279,1748844129913,-489.94392549,0.000411,120]
[363721280,1748844129940,-489.94392549,0.000411,120]
[363721281,1748844129967,-489.94392549,0.000411,120]
[363721282,1748844129993,-489.94392549,0.000411,120]
[363721283,1748844130019,-489.94392549,0.000411,120]
[363721284,1748844130044,-489.94392549,0.000411,120]
[363721285,1748844130071,-489.94392549,0.000411,120]
[363721286,1748844130097,-489.94392549,0.000411,120]
[363721287,1748844130126,-489.94392549,0.000411,120]
[363721288,1748844130152,-489.94,0.000411,120]
[363721289,1748844130179,-1143.20249282,0.000411,120]
[363721290,1748844130206,-1143.20249282,0.000411,120]
[363721291,1748844130232,-1143.20249282,0.000411,120]
[363721292,1748844130259,-1143.20249282,0.000411,120]
[363721293,1748844130285,-1143.20249282,0.000411,120]
[363721294,1748844130313,-1143.20249282,0.000411,120]
[363721295,1748844130340,-1143.20249282,0.000411,120]
[363721296,1748844130367,-1143.20249282,0.000411,120]
[363721297,1748844130399,-1143.20249282,0.000411,120]
[363721298,1748844130429,-1143.20249282,0.000411,120]
[363721299,1748844130457,-1143.20249282,0.000411,120]
[363721300,1748844130484,-1143.20249282,0.000411,120]
[363721301,1748844130511,-1143.20249282,0.000411,120]
[363721302,1748844130536,-1143.20249282,0.000411,120]
[363721303,1748844130563,-1143.20249282,0.000411,120]
[363721304,1748844130589,-1143.20249282,0.000411,120]
[363721305,1748844130614,-1143.20249282,0.000411,120]
[363721306,1748844130643,-1143.20249282,0.000411,120]
[363721307,1748844130670,-1143.20249282,0.000411,120]
[363721308,1748844130696,-1143.2,0.000411,120]
[363721309,1748844130723,-150.0,0.0004117,120]
[363721310,1748844130748,-159.0,0.000412,120]
[363721311,1748844130773,-169.0,0.000412,120]
[363721312,1748844130799,-150.0,0.00041227,120]
[363721313,1748844130827,-5527.97,0.00041369,120]
[363721314,1748844130855,-2763.98,0.00041369,120]
[363721315,1748844130884,-252.46458206,0.00041369,120]
[363721316,1748844130909,-1923.79,0.00041397,120]
[363721317,1748844130934,-1923.79,0.00041397,120]
[363721318,1748844130960,-1923.79,0.00041397,120]
[363721319,1748844130984,-1923.79,0.00041397,120]
[363721320,1748844131009,-1923.79,0.00041397,120]
[363721321,1748844131033,-1923.79,0.00041397,120]
[363721322,1748844131059,-1923.79,0.00041397,120]
[363721323,1748844131085,-1923.79,0.00041397,120]
[363721324,1748844131110,-1923.79,0.00041397,120]
[363721325,1748844131136,-1923.79,0.00041397,120]
[363721326,1748844131161,-1923.79,0.00041397,120]
[363721327,1748844131187,-1923.79,0.00041397,120]
[363721328,1748844131212,-1923.79,0.00041397,120]
[363721329,1748844131236,-1923.79,0.00041397,120]
[363721330,1748844131262,-1923.79,0.00041397,120]
[363721331,1748844131287,-1923.79,0.00041397,120]
[363721332,1748844131313,-1923.79,0.00041397,120]
[363721333,1748844131337,-1923.79,0.00041397,120]
[363721334,1748844131363,-1923.79,0.00041397,120]
[363721335,1748844131388,-1923.79,0.00041397,120]
[363721336,1748844131415,-1923.79,0.00041397,120]
[363721337,1748844131440,-1923.79,0.00041397,120]
[363721338,1748844131464,-1923.79,0.00041397,120]
[363721339,1748844131489,-1923.95968363,0.00041397,120]
[363721340,1748844131516,-199.63991931,0.000415,60]
[363721341,1748844131542,-12732.76259145,0.00041555,120]